fUSD/lending_fUSD_20250806
["ID","MTS","AMOUNT","RATE_DAILY","PERIOD"]
[377603815,1754448893273,-1328.89,0.00040273,14]
[377603816,1754448893282,-498.72,0.00040273,14]
[377603817,1754448893292,-2050.67,0.00040273,14]
[377603818,1754448893302,-1998.0,0.00040273,14]
[377603819,1754448893311,-2177.61,0.00040273,14]
[377603820,1754448893321,-2230.94,0.00040273,14]
[377603821,1754448893330,-565.91,0.00040273,14]
[377603822,1754448893340,-1023.05,0.00040273,14]
[377603823,1754448893349,-1541.91,0.00040273,14]
[377603824,1754448893360,-1947.18,0.00040273,14]
[377603825,1754448893370,-1701.37,0.00040273,14]
[377603826,1754448893382,-518.06,0.00040273,14]
[377603827,1754448893392,-1293.69,0.00040273,14]
[377603828,1754448893402,-3617.37,0.00040273,14]
[377603829,1754448893412,-1840.41,0.00040273,14]
[377603830,1754448893423,-1743.92,0.00040273,14]
[377603831,1754448893438,-1163.86,0.00040273,14]
[377603832,1754448893457,-2062.42,0.00040273,14]
[377603833,1754448893466,-2851.05,0.00040273,14]
[377603834,1754448893481,-400.0,0.00040273,14]
[377603835,1754448893497,-2082.15,0.00040273,14]
[377603836,1754448893507,-2004.98,0.00040273,14]
[377603837,1754448893516,-1802.74,0.00040273,14]
[377603838,1754448893525,-578.97,0.00040273,14]
[377603839,1754448893535,-1140.6,0.00040273,14]
[377603840,1754448893544,-400.0,0.00040273,14]
[377603841,1754448893553,-1704.62,0.00040273,14]
[377603842,1754448893562,-2059.67,0.00040273,14]
[377603843,1754448893571,-400.0,0.00040273,14]
[377603844,1754448893580,-2008.93,0.00040273,14]
[377603845,1754448893589,-1042.45,0.00040273,14]
[377603846,1754448893598,-1854.33,0.00040273,14]
[377603847,1754448893607,-2421.14,0.00040273,14]
[377603848,1754448893616,-904.89,0.00040273,14]
[377603849,1754448893626,-1949.77,0.00040273,14]
[377603850,1754448893635,-717.97,0.00040273,14]
[377603851,1754448893644,-439.26,0.00040273,14]
[377603852,1754448893653,-944.69,0.00040273,14]
[377603853,1754448893663,-1533.65,0.00040273,14]
[377603854,1754448893672,-564.92,0.00040273,14]
[377603855,1754448893682,-1068.1,0.00040273,14]
[377603856,1754448893691,-995.71,0.00040273,14]
[377603857,1754448893700,-1225.03,0.00040273,14]
[377603858,1754448893709,-400.0,0.00040273,14]
[377603859,1754448893719,-400.0,0.00040273,14]
[377603860,1754448893728,-423.39,0.00040273,14]
[377603861,1754448893738,-5248.2,0.00040273,14]
[377603862,1754448893749,-400.0,0.00040273,14]
[377603863,1754448893759,-463.8,0.00040273,14]
[377603864,1754448893770,-400.0,0.00040273,14]
[377603865,1754448893780,-1930.39,0.00040273,14]
[377603866,1754448893789,-465.73,0.00040273,14]
[377603867,1754448893799,-400.0,0.00040273,14]
[377603868,1754448893808,-919.64,0.00040273,14]
[377603869,1754448893817,-481.93,0.00040273,14]
[377603870,1754448893826,-2409.79,0.00040273,14]
[377603871,1754448893836,-680.58,0.00040273,14]
[377603872,1754448893846,-1276.5,0.00040273,14]
[377603873,1754448893855,-2002.8,0.00040273,14]
[377603874,1754448893866,-1671.93,0.00040273,14]
[377603875,1754448893875,-1873.43,0.00040273,14]
[377603876,1754448893886,-3610.35,0.00040273,14]
[377603877,1754448893896,-1790.5,0.00040273,14]
[377603878,1754448893906,-1409.58,0.00040273,14]
[377603879,1754448893919,-1784.3,0.00040273,14]
[377603880,1754448893929,-589.06,0.00040273,14]
[377603881,1754448893938,-493.42,0.00040273,14]
[377603882,1754448893948,-769.03,0.00040273,14]
[377603883,1754448893958,-400.0,0.00040273,14]
[377603884,1754448893967,-1966.76,0.00040273,14]
[377603885,1754448893976,-446.21,0.00040273,14]
[377603886,1754448893988,-1081.98,0.00040273,14]
[377603887,1754448893998,-974.88,0.00040273,14]
[377603888,1754448894008,-662.34,0.00040273,14]
[377603889,1754448894017,-861.94,0.00040273,14]
[377603890,1754448894028,-1264.89,0.00040273,14]
[377603891,1754448894040,-400.0,0.00040273,14]
[377603892,1754448894049,-2193.87,0.00040273,14]
[377603893,1754448894058,-950.01,0.00040273,14]
[377603894,1754448894070,-433.2,0.00040273,14]
[377603895,1754448894079,-2313.76,0.00040273,14]
[377603896,1754448894089,-2093.1,0.00040273,14]
[377603897,1754448894100,-2798.78,0.00040273,14]
[377603898,1754448894111,-2151.64,0.00040273,14]
[377603899,1754448894121,-1069.38,0.00040273,14]
[377603900,1754448894130,-1990.46,0.00040273,14]
[377603901,1754448894139,-825.71,0.00040273,14]
[377603902,1754448894147,-1160.89,0.00040273,14]
[377603903,1754448894156,-552.31,0.00040273,14]
[377603904,1754448894165,-534.6,0.00040273,14]
[377603905,1754448894174,-2830.73,0.00040273,14]
[377603906,1754448894183,-401.68122407,0.00040273,14]
[377603907,1754448894192,-877.07,0.00040273,14]
[377603908,1754448894201,-636.63,0.00040273,14]
[377603909,1754448894210,-2248.31,0.00040273,14]
[377603910,1754448894222,-1030.0129325,0.00040273,14]
[377603911,1754448894676,-121.0970675,0.00040273,14]
[377603912,1754448894686,-195.61028132,0.00040273,14]
[377603913,1754448894697,-567.82939543,0.00040273,14]
[377603914,1754448896259,-258.43268648,0.00036164,14]
[377603915,1754448897175,-269.46194383,0.00018687,2]
[377603916,1754448897333,-859.09845734,0.00018687,2]
[377603917,1754448898986,-1375.62959883,0.00018687,2]
[377603918,1754448898998,-151.12,0.000198,2]
[377603919,1754448899008,-151.12,0.000198,2]
[377603920,1754448899018,-151.12,0.000198,2]
[377603921,1754448899027,-151.12,0.000198,2]
[377603922,1754448899036,-151.12,0.000198,2]
[377603923,1754448899046,-151.12,0.000198,2]
[377603924,1754448899056,-151.12,0.000198,2]
[377603925,1754448899065,-151.12,0.000198,2]
[377603926,1754448899075,-79.41040117,0.000198,2]
[377603928,1754449448510,380.080761,7.945e-05,2]
[377603929,1754449603659,-272.91569739,0.00019034,2]
[377603930,1754449603686,-250.0,0.00019282,2]
[377603931,1754449603712,-250.0,0.00019589,2]
[377603932,1754449603736,-1275.53,0.00019781,14]
[377603933,1754449603759,-272.6046888,0.000198,2]
[377603934,1754449603783,-1200.0,0.0002088,2]
[377603935,1754449603806,-3782.94961381,0.00020881,2]
[377603936,1754449619126,-1511.37062064,0.00020881,2]
[377603937,1754449691004,152.87498021,0.00020781,38]
[377603938,1754449695961,152.87498007,0.00021188,39]
[377603939,1754449701000,152.87498007,0.00021594,40]
[377603940,1754449705952,152.87498007,0.00022001,41]
[377603941,1754449710959,152.87498007,0.00022408,42]
[377603942,1754449715984,152.87498007,0.00022814,43]
[377603979,1754449832476,-300.0,0.0002088,2]
[377603981,1754449832486,-3441.94927828,0.00020881,2]
[377603983,1754449832496,-250.0,0.00020881,2]
[377603985,1754449832506,-151.59,0.00020881,2]
[377603987,1754449832515,-150.92,0.00020881,2]
[377603989,1754449832525,-150.17,0.00020881,2]
[377603990,1754449832535,-152.0,0.00020881,2]
[377603991,1754449832545,-150.51,0.00020881,2]
[377603992,1754449832554,-152.02,0.00020881,2]
[377603993,1754449832565,-151.15,0.00020881,2]
[377603994,1754449832575,-150.08,0.00020881,2]
[377603995,1754449832583,-150.37,0.00020881,2]
[377603996,1754449832593,-152.85,0.00020881,2]
[377603997,1754449832603,-420.0,0.00022715,2]
[377603998,1754449832612,-250.0,0.00022969,2]
[377603999,1754449832621,-300.0,0.00022969,2]
[377604000,1754449832630,-300.0,0.00022969,2]
[377604001,1754449832639,-250.0,0.00022969,2]
[377604002,1754449832648,-152.87498007,0.00023221,44]
[377604003,1754449832657,-152.87498007,0.00023628,45]
[377604004,1754449832666,-170.01058659,0.00023753,11]
[377604005,1754449832675,-152.87498007,0.00024035,46]
[377604006,1754449832684,-152.87498007,0.00024441,47]
[377604007,1754449832693,-587.0,0.00024712,2]
[377604008,1754449832703,-152.87498007,0.00024848,48]
[377604009,1754449832712,-185.19,0.0002498,2]
[377604010,1754449832721,-152.87498007,0.00025255,49]
[377604011,1754449832731,-152.87498007,0.00025661,50]
[377604012,1754449832741,-152.87498007,0.00026068,51]
[377604013,1754449832752,-399.76,0.00026101,2]
[377604014,1754449832765,-159.0,0.00026169,2]
[377604015,1754449832775,-12468.12201389,0.00026557,2]
[377604016,1754449832785,-164.883,0.00026717,2]
[377604017,1754449832795,-823.0,0.00026885,2]
[377604018,1754449832807,-155.57258069,0.00027265,2]
[377604019,1754449832816,-165.65137929,0.000274,2]
[377604020,1754449832825,-165.65137928,0.000274,2]
[377604021,1754449832835,-173.0,0.00027589,25]
[377604022,1754449832846,-250.0,0.0002759,2]
[377604023,1754449832855,-399.76,0.00027832,2]
[377604024,1754449832864,-182.5,0.00029115,2]
[377604025,1754449832874,-1152.0,0.00029248,2]
[377604026,1754449832883,-165.65137928,0.00029462,2]
[377604027,1754449832894,-399.76,0.00029562,2]
[377604028,1754449832903,-175.0,0.00030517,7]
[377604029,1754449832913,-150.0,0.00030577,2]
[377604030,1754449832922,-205.02,0.00030727,2]
[377604031,1754449832931,-250.0,0.00030782,2]
[377604032,1754449832941,-5000.0,0.0003093,2]
[377604033,1754449832952,-500.0,0.00031101,2]
[377604034,1754449832961,-500.0,0.00031101,2]
[377604035,1754449832970,-629.62379019,0.00031101,2]
[377604036,1754449832979,-167.57,0.00031117,2]
[377604037,1754449832989,-11908.13,0.00031119,2]
[377604038,1754449832998,-199.58,0.00031291,2]
[377604039,1754449833008,-399.76,0.00031292,2]
[377604040,1754449833018,-166.66,0.0003132,2]
[377604041,1754449833027,-1011.11,0.00031334,2]
[377604042,1754449833036,-1170.0,0.00031347,2]
[377604043,1754449833046,-892.0,0.00031347,2]
[377604044,1754449833057,-2751.0,0.00031393,120]
[377604045,1754449833066,-166.91,0.00031668,2]
[377604046,1754449833076,-441.0,0.0003182,2]
[377604047,1754449833086,-446.26,0.00031985,2]
[377604048,1754449833095,-161.96,0.00032008,2]
[377604049,1754449833104,-666.0,0.00032084,3]
[377604050,1754449833114,-484.42,0.00032215,2]
[377604051,1754449833124,-200.0,0.00032313,2]
[377604052,1754449833134,-161.96,0.00032328,2]
[377604053,1754449833145,-166.66,0.00032354,2]
[377604054,1754449833155,-150.0,0.00032372,2]
[377604055,1754449833166,-1524.868,0.00032428,32]
[377604056,1754449833175,-395.83,0.00032501,2]
[377604057,1754449833185,-156.41,0.00032595,2]
[377604058,1754449833198,-200.0,0.00032611,2]
[377604059,1754449833207,-300.0,0.00032725,2]
[377604060,1754449833216,-1000.0,0.00032773,2]
[377604061,1754449833226,-2244.22,0.00032876,2]
[377604062,1754449833237,-175.24,0.00032904,30]
[377604063,1754449833247,-166.91,0.00032974,2]
[377604064,1754449833256,-399.76,0.00033023,2]
[377604065,1754449833266,-157.0,0.00033068,58]
[377604066,1754449833275,-150.0,0.00033263,4]
[377604067,1754449833284,-150.0,0.00033263,4]
[377604068,1754449833293,-150.0,0.00033263,4]
[377604069,1754449833303,-150.00000001,0.00033263,4]
[377604070,1754449833313,-150.0,0.00033263,4]
[377604071,1754449833323,-166.66,0.00033388,2]
[377604072,1754449833332,-150.0,0.00033571,7]
[377604073,1754449833342,-150.0,0.00033786,2]
[377604074,1754449833351,-150.0,0.00033866,2]
[377604075,1754449833360,-150.0,0.00033879,7]
[377604076,1754449833369,-150.0,0.00034004,2]
[377604077,1754449833378,-150.0,0.00034021,2]
[377604078,1754449833387,-379.0,0.000341,2]
[377604079,1754449833396,-775.0,0.000341,2]
[377604080,1754449833405,-240.0,0.000341,2]
[377604081,1754449833415,-1252.0,0.00034114,2]
[377604082,1754449833424,-809.0,0.00034114,2]
[377604083,1754449833434,-3362.0,0.00034114,2]
[377604084,1754449833443,-956.0,0.00034114,2]
[377604085,1754449833452,-1293.0,0.00034114,2]
[377604086,1754449833462,-958.0,0.00034114,2]
[377604087,1754449833471,-597.0,0.00034114,2]
[377604088,1754449833480,-2024.0,0.00034114,2]
[377604089,1754449833489,-564.0,0.00034114,2]
[377604090,1754449833498,-1652.0,0.00034114,2]
[377604091,1754449833507,-150.0,0.00034187,7]
[377604092,1754449833516,-166.91,0.00034281,2]
[377604093,1754449833526,-1170.0,0.00034347,2]
[377604094,1754449833535,-892.0,0.00034347,2]
[377604095,1754449833545,-151.0,0.00034385,5]
[377604096,1754449833554,-199.58,0.0003442,2]
[377604097,1754449833564,-166.66,0.00034422,2]
[377604098,1754449833573,-150.0,0.00034495,7]
[377604099,1754449833582,-399.76,0.00034753,2]
[377604100,1754449833591,-1000.0,0.000348,2]
[377604101,1754449833600,-2000.0,0.000348,2]
[377604102,1754449833609,-150.0,0.00034803,7]
[377604103,1754449833619,-150.0,0.00035111,7]
[377604104,1754449833627,-150.0,0.00035419,7]
[377604105,1754449833637,-166.66,0.00035456,2]
[377604106,1754449833646,-4001.9474,0.00035506,2]
[377604107,1754449833655,-151.76244621,0.00035506,2]
[377604108,1754449833664,-505.7455139,0.00035515,2]
[377604109,1754449833673,-5000.0,0.00035516,2]
[377604110,1754449833682,-2500.0,0.00035516,2]
[377604111,1754449833691,-2190.4959481,0.00035516,2]
[377604112,1754449833700,-151.0,0.00035524,7]
[377604113,1754449833709,-166.91,0.00035588,2]
[377604114,1754449833718,-477.25,0.00035596,2]
[377604115,1754449833727,-477.25,0.00035596,2]
[377604116,1754449833736,-1000.0,0.00035599,2]
[377604117,1754449833745,-7098.22374295,0.00035606,2]
[377604118,1754449833791,-11634.12965554,0.00035606,2]
[377604119,1754449833803,-5528.39329243,0.00035606,2]
[377604120,1754449833815,-9736.06947103,0.00035606,2]
[377604122,1754449837946,-3003.7340123,0.00018889,2]
[377604123,1754449837955,-159.0,0.00023,7]
[377604124,1754449837965,-159.0,0.00024164,7]
[377604125,1754449837974,-870.11,0.0003264,2]
[377604126,1754449837983,-40741.89918975,0.00035606,2]
[377604137,1754449839797,-189909.2401913,0.00035606,2]
[377604138,1754449839807,-118481.09580653,0.00035606,2]
[377604139,1754449840006,-47122.5750732,0.00035606,2]
[377604141,1754449843691,-167.93006898,0.00035606,2]
[377604142,1754449844206,-404.3835385,0.00035606,2]
[377604144,1754449845851,-3884.62019114,0.00035606,2]
[377604145,1754449846009,-408.30563646,0.00035606,2]
[377604146,1754449902302,714.0,0.0003013,120]
[377604148,1754449921805,1442.56,0.00029441,120]
[377604149,1754449965301,393.28728743,0.0003013,120]
[377604150,1754450042524,1442.56,0.00029121,120]
[377604151,1754450042581,1442.56,0.00029313,120]
[377604153,1754450047206,235.31,0.00013699,2]
[377604158,1754450673265,429.10927301,0.00030136,120]
[377604159,1754450708466,2308.25381042,0.00016,2]
[377604160,1754450708499,19836.69883181,0.00016,2]
[377604161,1754450735153,845.0571672,0.00011,2]
[377604162,1754450753182,-999564.31828143,0.00019,2]
[377604163,1754450763599,9158.61057928,8e-05,2]
[377604164,1754450857040,-281.14961322,0.000166,2]
[377604165,1754450873150,3778.36272319,0.00013,2]
[377604166,1754450874946,-70.92068678,0.000166,2]
[377604167,1754450900882,21610.82662268,0.00012,30]
[377604168,1754450919935,8523.07207226,0.000151,2]
[377604169,1754450982948,205.75093667,0.00019481,3]
[377604171,1754451003138,1000.0,0.00018225,4]
[377604172,1754451017943,-224.04082957,0.0001791,2]
[377604177,1754451032155,-247.61943943,0.0001791,2]
[377604178,1754451032165,-1667.87445474,0.00018,2]
[377604179,1754451032180,-626.9499857,0.00018,2]
[377604180,1754451032215,-306.68,0.00018,2]
[377604181,1754451032283,-3776.61127154,0.00018,2]
[377604182,1754451032292,-300.0,0.0001845,2]
[377604183,1754451032302,-250.0,0.0001845,2]
[377604184,1754451032311,-1200.0,0.00018699,2]
[377604185,1754451032320,-300.0,0.00018699,2]
[377604186,1754451032329,-300.0,0.00018699,2]
[377604187,1754451032338,-13573.69366727,0.000187,2]
[377604188,1754451032348,-197.15117888,0.00018899,2]
[377604189,1754451032357,-850.0,0.00018998,2]
[377604190,1754451032367,-500.0,0.00018999,2]
[377604191,1754451032377,-444.4822648,0.00018999,2]
[377604192,1754451032386,-300.0,0.00018999,2]
[377604193,1754451032396,-158.35271845,0.00018999,2]
[377604194,1754451032407,-182.51548338,0.00018999,2]
[377604195,1754451032416,-164.43143594,0.00018999,2]
[377604196,1754451032425,-504.0425086,0.00018999,2]
[377604197,1754451032434,-549.42266807,0.00018999,2]
[377604198,1754451032444,-500.0,0.00018999,2]
[377604199,1754451032454,-500.0,0.00018999,2]
[377604200,1754451032463,-500.0,0.00018999,2]
[377604201,1754451032473,-500.0,0.00018999,2]
[377604202,1754451032483,-500.0,0.00018999,2]
[377604203,1754451032494,-500.0,0.00018999,2]
[377604204,1754451032504,-500.0,0.00018999,2]
[377604205,1754451032514,-500.0,0.00018999,2]
[377604206,1754451032523,-500.0,0.00018999,2]
[377604207,1754451032534,-500.0,0.00018999,2]
[377604209,1754451032544,-500.0,0.00018999,2]
[377604210,1754451032556,-500.0,0.00018999,2]
[377604212,1754451032566,-500.0,0.00018999,2]
[377604214,1754451032575,-500.0,0.00018999,2]
[377604216,1754451032584,-500.0,0.00018999,2]
[377604218,1754451032594,-500.0,0.00018999,2]
[377604221,1754451032604,-500.0,0.00018999,2]
[377604224,1754451032613,-235.80441159,0.00018999,2]
[377604228,1754451032628,-264.19558841,0.00018999,2]
[377604229,1754451032638,-500.0,0.00018999,2]
[377604231,1754451032648,-500.0,0.00018999,2]
[377604233,1754451032658,-500.0,0.00018999,2]
[377604236,1754451032668,-500.0,0.00018999,2]
[377604237,1754451032678,-500.0,0.00018999,2]
[377604239,1754451032687,-500.0,0.00018999,2]
[377604241,1754451032696,-500.0,0.00018999,2]
[377604242,1754451032705,-500.0,0.00018999,2]
[377604243,1754451032715,-500.0,0.00018999,2]
[377604244,1754451032724,-500.0,0.00018999,2]
[377604245,1754451032733,-500.0,0.00018999,2]
[377604247,1754451032742,-500.0,0.00018999,2]
[377604249,1754451032752,-500.0,0.00018999,2]
[377604250,1754451032761,-500.0,0.00018999,2]
[377604251,1754451032770,-500.0,0.00018999,2]
[377604252,1754451032779,-500.0,0.00018999,2]
[377604253,1754451032788,-500.0,0.00018999,2]
[377604254,1754451032797,-500.0,0.00018999,2]
[377604255,1754451032806,-631.83006609,0.00018999,2]
[377604256,1754451032815,-500.0,0.00018999,2]
[377604257,1754451032825,-500.0,0.00018999,2]
[377604258,1754451032834,-350.0,0.00018999,2]
[377604259,1754451032843,-404.77811348,0.00018999,2]
[377604260,1754451032852,-2329.33120346,0.00019,2]
[377604261,1754451032880,-676.77092641,0.00019,2]
[377604262,1754451032912,-1992.87973827,0.00019,2]
[377604263,1754451032969,-1261.81171911,0.00019,2]
[377604264,1754451038224,-6254489.64532896,0.00019,2]
[377604265,1754451038873,246.07,0.00013699,2]
[377604273,1754451040077,-6687134.05499197,0.00019,2]
[377604274,1754451040146,-807.22988344,0.00019,2]
[377604275,1754451040228,-42150.64594548,0.00019,2]
[377604281,1754451046115,-2664.0,0.00019,2]
[377604282,1754451046220,-729.15000218,0.00019,2]
[377604283,1754451122174,1000.0,0.00018806,4]
[377604286,1754451297671,666.0,0.00018315,3]
[377604287,1754451489012,250.0,0.00015,2]
[377604288,1754451588192,175.0,0.00018121,7]
[377604289,1754451623184,866.80670264,0.00030136,120]
[377604290,1754451707911,-179.26785298,0.000179,2]
[377604291,1754451710818,-237.29207902,0.000179,2]
[377604292,1754451713661,-504.07884097,0.000179,2]
[377604293,1754451766833,601.31,0.00015068,2]
[377604294,1754451769007,-160.81374268,0.0001666,2]
[377604295,1754451771719,-227.65271213,0.0001666,2]
[377604296,1754451774078,-212.84354519,0.0001666,2]
[377604297,1754451838192,854.71498507,0.00030137,120]
[377604298,1754451920274,150.0,0.0001925,4]
[377604299,1754451921126,150.0,0.000195,4]
[377604302,1754451963300,1000.0,0.00019366,4]
[377604304,1754451974145,-240.19225052,0.00017588,2]
[377604305,1754451977629,-159.32920448,0.00017588,2]
[377604306,1754451979414,-142.588545,0.00017588,2]
[377604307,1754451979438,-101.20734319,0.00017606,2]
[377604308,1754451983150,-78.06265681,0.00017606,2]
[377604309,1754451983172,-94.14314319,0.0001788,2]
[377604310,1754451985469,-89.11933309,0.0001788,2]
[377604311,1754452009089,-273.72673611,0.00017961,2]
[377604312,1754452082474,1000.0,0.00019324,4]
[377604313,1754452088009,-151.0,0.00017553,2]
[377604314,1754452089106,-6.54,0.00017553,2]
[377604315,1754452089128,-150.0,0.00017568,2]
[377604316,1754452089151,-157.54,0.00017728,2]
[377604317,1754452119967,333.0,0.00030136,120]
[377604318,1754452127346,-290.14413512,0.0001752,2]
[377604319,1754452130633,-309.85586488,0.0001752,2]
[377604320,1754452133991,-182.94819629,0.0001752,2]
[377604321,1754452136418,-160.59569956,0.0001752,2]
[377604322,1754452139818,-56.45610415,0.0001752,2]
[377604323,1754452139841,-128.39362494,0.00017566,2]
[377604324,1754452141578,-49.27637506,0.00017566,2]
[377604325,1754452178371,191.8461056,0.00030136,120]
[377604326,1754452204025,-200.0,0.00017514,2]
[377604327,1754452204051,-25.14853165,0.00017697,2]
[377604328,1754452205784,-179.8775,0.00017697,2]
[377604329,1754452207859,-94.97396835,0.00017697,2]
[377604331,1754452213493,268.77,0.00013699,2]
[377604339,1754452232483,-183.26247626,0.0001788,2]
[377604340,1754452232492,-1200.0,0.00017961,2]
[377604341,1754452232502,-13167.99,0.00017962,2]
[377604342,1754452232511,-2751.0,0.0001798,2]
[377604343,1754452232520,-150.0,0.00018,2]
[377604344,1754452232529,-150.0,0.00018,2]
[377604345,1754452232539,-150.0,0.00018,2]
[377604346,1754452232548,-150.0,0.00018,2]
[377604347,1754452232557,-150.0,0.00018,2]
[377604348,1754452232567,-150.0,0.00018,2]
[377604349,1754452232576,-150.0,0.00018,2]
[377604350,1754452232586,-150.0,0.00018,2]
[377604351,1754452232595,-150.0,0.00018,2]
[377604352,1754452232604,-150.78223464,0.00018,2]
[377604353,1754452232615,-614.67904389,0.00018,2]
[377604354,1754452232624,-183.26247626,0.00018109,2]
[377604355,1754452232635,-158.56,0.0001815,2]
[377604356,1754452232644,-250.0,0.0001815,2]
[377604358,1754452232654,-263.0,0.00018167,2]
[377604360,1754452232663,-600.0,0.00018168,2]
[377604362,1754452232673,-600.0,0.00018168,2]
[377604364,1754452232683,-600.0,0.00018168,2]
[377604366,1754452232693,-356.9346093,0.00018168,2]
[377604368,1754452232703,-151.0,0.00018168,2]
[377604370,1754452232712,-151.0,0.00018168,2]
[377604372,1754452232721,-151.0,0.00018168,2]
[377604374,1754452232731,-500.0,0.00018168,2]
[377604376,1754452232740,-151.0,0.00018168,2]
[377604378,1754452232749,-151.0,0.00018168,2]
[377604379,1754452232758,-500.0,0.00018168,2]
[377604381,1754452232767,-500.0,0.00018168,2]
[377604383,1754452232777,-151.0,0.00018168,2]
[377604384,1754452232786,-500.0,0.00018168,2]
[377604387,1754452232795,-151.0,0.00018168,2]
[377604390,1754452232805,-500.0,0.00018168,2]
[377604392,1754452232814,-151.0,0.00018168,2]
[377604394,1754452232823,-151.0,0.00018168,2]
[377604397,1754452232832,-500.0,0.00018168,2]
[377604401,1754452232842,-151.0,0.00018168,2]
[377604405,1754452232851,-500.0,0.00018168,2]
[377604407,1754452232860,-151.0,0.00018168,2]
[377604409,1754452232870,-500.0,0.00018168,2]
[377604411,1754452232879,-500.0,0.00018168,2]
[377604412,1754452232888,-500.0,0.00018168,2]
[377604413,1754452232897,-500.0,0.00018168,2]
[377604414,1754452232907,-500.0,0.00018168,2]
[377604415,1754452232921,-200.0,0.00018178,2]
[377604416,1754452232930,-17078.84059868,0.00018179,2]
[377604417,1754452232967,-2796.65340243,0.00018179,2]
[377604420,1754452238383,-4024.50599889,0.00018179,2]
[377604421,1754452238393,-160.74,0.000182,2]
[377604422,1754452238402,-920.9,0.00018209,2]
[377604423,1754452238411,-1219.894,0.00018209,2]
[377604424,1754452238420,-500.0,0.00018223,2]
[377604425,1754452238429,-200.0,0.00018236,2]
[377604426,1754452238438,-480.95130415,0.00018245,2]
[377604427,1754452238465,-888.0,0.00018245,2]
[377604428,1754452238588,-13601.21869585,0.00018245,2]
[377604429,1754452238598,-150.0,0.0001825,2]
[377604430,1754452238608,-601.31,0.00018252,2]
[377604431,1754452238617,-500.0,0.00018278,2]
[377604432,1754452238626,-609.24118057,0.00018333,2]
[377604433,1754452238636,-177.67,0.00018444,2]
[377604434,1754452238645,-2535.27810632,0.000185,2]
[377604435,1754452238656,-150.0,0.000185,2]
[377604436,1754452238666,-376.04,0.00018532,2]
[377604438,1754452238675,-845.01572123,0.00018708,2]
[377604440,1754452238685,-150.0,0.0001875,2]
[377604441,1754452238695,-2965.92557,0.0001884,2]
[377604443,1754452238704,-165.43,0.00018878,2]
[377604444,1754452238713,-191.33890929,0.000189,2]
[377604446,1754452238722,-233.72491494,0.000189,2]
[377604447,1754452238732,-3157.47256006,0.000189,2]
[377604448,1754452238742,-1689.57412906,0.000189,2]
[377604449,1754452238751,-682.71869072,0.000189,2]
[377604451,1754452238761,-2965.92556,0.0001891,2]
[377604452,1754452238770,-2965.92556,0.0001897,2]
[377604453,1754452238780,-561.71369288,0.00018999,2]
[377604454,1754452238789,-205.98175981,0.00018999,2]
[377604455,1754452238798,-178.71235367,0.00018999,2]
[377604456,1754452238808,-500.0,0.00018999,2]
[377604457,1754452238817,-559.58426996,0.00018999,2]
[377604458,1754452238826,-4464268.58478652,0.00019,2]
[377604459,1754452238836,-150.0,0.00019,2]
[377604460,1754452238845,-150.0,0.00019,2]
[377604461,1754452238855,-2965.92556,0.00019,2]
[377604462,1754452238863,-2965.92556,0.00019,2]